bitfinex-derivatives/quotes_ETHF0:USTF0_20250919
["timestamp","ask_amount","ask_price","bid_price","bid_amount"]
[1758281837043,0.2144,4515.3,4515.2,0.6955]
[1758281837244,0.74597287,4515.3,4515.2,1.09394]
[1758281837544,0.96611755,4515.3,4515.2,1.09394]
[1758281838144,0.96611755,4515.3,4515.2,0.6955]
[1758281838443,1.46611755,4515.3,4515.0,0.2917]
[1758281838648,0.7144,4514.8,4514.7,0.497]
[1758281838946,0.93454468,4514.8,4514.7,0.497]
[1758281839148,0.7144,4514.8,4514.7,0.6955]
[1758281839346,0.2956,4514.7,4513.5,0.2917]
[1758281839550,2.4789205,4514.6,4513.5,0.4132]
[1758281839742,0.7514628,4514.5,4513.5,0.4132]
[1758281839941,1.2514628,4514.4,4513.0,0.1215]
[1758281840136,0.2200761,4514.3,4513.1,0.2917]
[1758281840346,0.7514628,4514.2,4514.1,0.2917]
[1758281840748,0.99658153,4514.2,4514.1,0.497]
[1758281841142,0.99658153,4514.2,4514.1,0.6955]
[1758281841143,0.77258153,4514.2,4514.1,0.6955]
[1758281841449,0.24119483,4514.2,4514.1,0.6955]
[1758281842150,0.225,4514.9,4514.8,0.4038]
[1758281842351,0.225,4514.9,4514.8,1.09398]
[1758281842545,0.75527693,4514.9,4514.8,1.09398]
[1758281842755,0.46590973,4514.9,4514.8,1.09398]
[1758281843050,0.24090973,4514.9,4514.8,1.09398]
[1758281843245,0.24090973,4515.0,4514.8,1.09398]
[1758281843445,0.24090973,4515.0,4514.9,0.6955]
[1758281845042,36.112,4515.4,4515.3,0.2053]
[1758281845247,36.65840967,4515.4,4515.3,0.6955]
[1758281845448,36.12796478,4515.4,4515.3,0.6955]
[1758281846450,36.35296478,4515.4,4515.3,0.6955]
[1758281847157,36.12796478,4515.4,4515.3,0.6955]
[1758281847357,36.35296478,4515.4,4515.3,0.6955]
[1758281847759,36.88352574,4515.4,4515.3,0.6955]
[1758281848956,36.88352574,4515.4,4515.3,0.497]
[1758281849351,36.88352574,4515.4,4515.3,0.7105]
[1758281853152,36.88352574,4515.4,4515.3,0.497]
[1758281853355,36.88352574,4515.4,4515.3,0.2917]
[1758281853760,36.88371817,4515.4,4515.3,0.2917]
[1758281860563,36.88371817,4515.4,4515.3,0.88943]
[1758281860757,36.88371817,4515.4,4515.3,1.10293]
[1758281861162,36.65871817,4515.4,4515.3,1.10293]
[1758281861367,36.88271817,4515.4,4515.3,1.10293]
[1758281861563,0.99571817,4515.4,4515.3,1.10293]
[1758281863068,0.77171817,4515.4,4515.3,1.10293]
[1758281863267,35.889,4516.9,4516.3,0.3157]
[1758281863457,35.889,4516.9,4516.0,0.127]
[1758281863458,0.75534491,4516.8,4516.6,0.3157]
[1758281863663,0.53134491,4516.7,4516.6,0.515]
[1758281864363,0.53134491,4516.7,4516.6,0.7285]
[1758281865769,35.889,4516.9,4516.8,0.7285]
[1758281866070,36.64389154,4516.9,4516.8,0.7285]
[1758281871168,36.64389154,4516.9,4516.8,1.1268]
[1758281872374,36.64389154,4516.9,4516.8,0.7285]
[1758281873074,0.75489154,4516.9,4516.8,0.7285]
[1758281873775,37.85632213,4518.4,4518.0,0.127]
[1758281873776,1.5794577,4518.1,4518.0,0.127]
[1758281874073,0.224,4518.1,4518.0,0.4427]
[1758281875077,0.224,4518.1,4518.0,0.642]
[1758281875470,0.224,4518.1,4518.0,0.8555]
[1758281875774,0.46564058,4518.1,4518.0,0.8555]
[1758281879670,0.46527812,4518.1,4518.0,0.642]
[1758281882078,0.68660812,4518.1,4517.5,0.4455]
[1758281882268,0.46262812,4518.0,4517.6,0.2964]
[1758281882468,0.46527812,4517.9,4517.6,0.2964]
[1758281882679,0.24127812,4517.8,4517.6,0.2964]
[1758281882878,0.46527812,4517.7,4517.6,0.2964]
[1758281883877,4.46527812,4517.7,4517.5,0.1491]
[1758281884075,0.24127812,4517.6,4517.3,0.2964]
[1758281884275,0.24127812,4517.5,4516.5,0.4234]
[1758281884571,0.1764,4516.1,4516.0,0.3333]
[1758281884772,0.64167812,4516.1,4516.0,0.5413]
[1758281886482,0.64167812,4516.1,4516.0,0.8377]
[1758281887278,1.1693697,4516.1,4516.0,0.8377]
[1758281888176,1.1693697,4516.1,4516.0,0.4223]
[1758281888378,1.2244697,4516.1,4516.0,0.4223]
[1758281889073,0.7689697,4516.1,4516.0,0.8377]
[1758281896183,0.7689697,4516.1,4516.0,1.23607]
[1758281897883,0.24127812,4516.1,4516.0,1.23607]
[1758281898086,0.24682059,4516.5,4516.4,0.2964]
[1758281898388,0.77588937,4516.5,4516.4,0.7118]
[1758281898589,0.86408937,4516.5,4516.4,0.7118]
[1758281898889,0.77588937,4516.5,4516.4,0.7118]
[1758281899988,0.77588937,4516.5,4516.4,1.11014]
[1758281902796,0.24682059,4516.5,4516.4,1.11014]
[1758281904387,0.77596721,4516.5,4516.4,1.11014]
[1758281905295,0.95236721,4516.5,4516.4,0.7118]
[1758281905797,0.95236721,4516.5,4516.4,1.11014]
[1758281907193,0.86416721,4516.5,4516.4,1.11014]
[1758281907699,0.77596721,4516.5,4516.4,1.11014]
[1758281912202,0.86396721,4516.5,4516.4,1.11014]
[1758281912590,0.95196721,4516.5,4516.4,1.11014]
[1758281913202,1.00696721,4516.5,4516.4,0.69474]
[1758281913702,0.95196721,4516.5,4516.4,1.10044]
[1758281914004,0.86396721,4516.5,4516.4,1.10044]
[1758281915198,0.85911719,4516.5,4516.4,1.10044]
[1758281917207,0.77111719,4516.5,4516.4,1.10044]
[1758281919105,0.77114761,4516.5,4516.4,1.10044]
[1758281919899,0.088,4517.6,4517.5,0.52494]
[1758281920106,0.088,4517.6,4517.5,0.93064]
[1758281920509,0.088,4517.6,4517.5,1.23114]
[1758281921203,1.5794577,4518.7,4518.4,0.4057]
[1758281921401,0.055,4520.0,4518.7,0.4057]
[1758281921402,0.088,4518.8,4518.7,0.4057]
[1758281921603,0.088,4518.8,4518.7,1.10433]
[1758281921896,0.088,4518.8,4518.5,0.1267]
[1758281921897,0.176,4519.3,4519.2,0.59228]
[1758281922102,0.176,4519.3,4519.2,1.10428]
[1758281922297,0.176,4519.3,4519.2,0.7062]
[1758281923204,0.231,4519.3,4519.2,0.3005]
[1758281923409,0.176,4518.6,4518.5,1.01955]
[1758281923607,0.176,4518.6,4518.5,1.23105]
[1758281924311,0.231,4518.6,4518.5,0.4272]
[1758281924507,4.231,4518.6,4518.5,0.3005]
[1758281924810,0.231,4518.4,4518.3,0.3226]
[1758281925800,4.231,4518.4,4518.3,0.0221]
[1758281927108,4.231,4518.4,4518.0,0.1267]
[1758281927310,0.176,4518.2,4518.1,0.3005]
[1758281927610,0.176,4518.2,4518.1,0.4947]
[1758281929415,0.176,4518.2,4518.0,0.1267]
[1758281929416,0.176,4517.9,4517.8,0.3005]
[1758281929915,0.176,4517.9,4517.8,0.4947]
[1758281931614,0.231,4517.9,4517.8,0.3005]
[1758281931808,0.96904872,4517.9,4517.8,0.3005]
[1758281932408,0.91404872,4517.9,4517.8,0.3005]
[1758281932713,0.91404872,4517.9,4517.8,0.4947]
[1758281932913,1.13904872,4517.9,4517.8,0.4947]
[1758281934408,1.13904872,4517.9,4517.8,0.3005]
[1758281934614,1.19404872,4517.9,4517.8,0.3005]
[1758281934813,1.13904872,4517.9,4517.8,0.4947]
[1758281935110,1.13904872,4517.9,4517.8,0.7062]
[1758281937114,0.231,4517.7,4517.6,0.0221]
[1758281937317,0.44921727,4517.7,4517.6,0.0221]
[1758281937515,0.91404872,4517.7,4517.0,0.1267]
[1758281937714,0.1762,4517.2,4517.1,0.5036]
[1758281938014,0.69603145,4517.2,4517.1,0.5036]
[1758281938212,0.91424872,4517.2,4517.1,0.5036]
[1758281940020,0.0881,4516.7,4516.6,0.6873]
[1758281940214,0.51983145,4516.7,4516.6,0.6873]
[1758281940419,0.21821727,4516.7,4516.6,0.6873]
[1758281940719,0.73804872,4516.7,4516.6,0.6873]
[1758281940914,0.82614872,4516.7,4516.6,0.6873]
[1758281941617,0.73804872,4516.7,4516.6,0.6873]
[1758281942524,4.91424872,4516.7,4516.5,0.1267]
[1758281942814,0.2313,4516.5,4516.4,0.0221]
[1758281943021,0.96934872,4516.5,4516.4,0.0221]
[1758281943210,4.96934872,4516.5,4516.4,0.0221]
[1758281944219,0.1762,4516.2,4516.1,0.2925]
[1758281944416,0.4022,4516.2,4516.1,0.2925]
[1758281944609,1.14024872,4516.2,4516.1,0.2925]
[1758281944811,0.2313,4515.7,4514.6,0.39849]
[1758281945021,0.96934872,4515.6,4515.5,0.4192]
[1758281945421,0.91424872,4515.6,4515.5,0.4192]
[1758281945616,0.91424872,4515.6,4515.5,0.6144]
[1758281946016,0.91424872,4515.6,4515.5,0.814]
[1758281947920,0.39441727,4515.6,4515.5,0.814]
[1758281948121,0.1762,4515.6,4515.5,0.814]
[1758281952918,0.2313,4515.6,4515.5,0.4192]
[1758281953122,0.2313,4515.6,4515.5,0.2925]
[1758281953824,0.1762,4515.6,4515.5,0.4188]
[1758281954123,0.1762,4515.6,4515.5,0.614]
[1758281955320,0.6953039,4515.6,4515.5,0.614]
[1758281955526,0.1762,4515.6,4515.5,0.8136]
[1758281955728,0.0881,4515.6,4515.5,0.8136]
[1758281956420,1.81153426,4515.9,4515.5,0.8136]
[1758281956421,1.81153426,4515.9,4515.6,0.2925]
[1758281956726,0.5881,4516.1,4516.0,0.614]
[1758281956925,1.40895288,4516.1,4516.0,0.614]
[1758281957125,0.90895288,4516.1,4516.0,0.614]
[1758281957727,2.68959926,4516.1,4516.0,0.8136]
[1758281958119,2.74469926,4516.1,4515.5,0.1263]
[1758281958426,0.3021,4515.3,4513.7,0.99644]
[1758281958625,0.5086,4514.7,4514.6,0.7933]
[1758281959226,0.2065,4514.7,4514.6,0.7933]
[1758281959525,0.5086,4515.0,4514.9,0.3948]
[1758281960023,0.3021,4515.7,4515.0,0.1263]
[1758281960223,0.3021,4515.7,4514.5,0.1263]
[1758281960224,0.5086,4514.6,4514.5,0.5211]
[1758281960418,0.5086,4514.6,4514.5,0.8136]
[1758281960419,0.2065,4514.6,4514.5,0.8136]
[1758281960624,0.5086,4514.9,4514.8,0.3948]
[1758281960928,0.2065,4514.9,4514.8,0.6873]
[1758281962429,0.5086,4514.9,4514.8,0.6873]
[1758281962933,0.3021,4515.4,4514.8,0.3948]
[1758281963130,1.44931381,4515.3,4515.2,0.4877]
[1758281963328,1.44931381,4515.3,4515.2,0.6873]
[1758281966126,0.94021381,4515.3,4515.2,0.6873]
[1758281966631,1.24231381,4515.3,4515.2,0.6873]
[1758281967233,1.24231381,4515.3,4514.6,0.2925]
[1758281967234,0.1195,4515.0,4514.6,0.2925]
[1758281967433,0.7156,4514.7,4514.6,0.4877]
[1758281967631,1.44931381,4514.7,4514.6,0.4877]
[1758281968830,1.44931381,4514.7,4514.0,0.0221]
[1758281968831,0.4117,4514.1,4514.0,0.0221]
[1758281969036,0.92058162,4514.1,4514.0,0.0221]
[1758281969233,0.7067,4513.8,4513.7,0.5247]
[1758281969437,1.44041381,4513.8,4513.7,0.5247]
[1758281970328,1.44041381,4513.8,4513.7,0.2119]
[1758281971034,1.44041381,4513.8,4513.7,0.7372]
[1758281972434,0.94401381,4513.8,4513.7,0.7372]
[1758281972633,0.73371381,4513.8,4513.7,0.7372]
[1758281973133,1.23901381,4513.8,4513.7,0.7372]
[1758281973838,0.94401381,4513.8,4513.7,0.7372]
[1758281974033,1.44041381,4513.8,4513.7,0.7372]
[1758281974235,1.44041381,4513.8,4513.7,0.4244]
[1758281974837,1.44041381,4513.8,4513.7,0.7372]
[1758281976540,0.5053,4513.4,4513.3,0.4244]
[1758281976740,0.42418162,4513.4,4513.3,0.4244]
[1758281976943,0.73371381,4513.4,4513.3,0.4244]
[1758281977142,0.73371381,4513.4,4513.3,0.7372]
[1758281978231,0.73371381,4513.4,4512.6,0.3128]
[1758281978232,5.44041381,4513.4,4512.6,0.3128]
[1758281978431,0.1232,4513.0,4512.1,0.7372]
[1758281978631,1.44041381,4512.9,4512.8,0.7372]
[1758281979430,1.44041381,4512.9,4512.8,0.4244]
[1758281979636,1.44041381,4512.9,4512.8,0.2119]
[1758281980137,1.44041381,4512.9,4512.5,0.3128]
[1758281980331,0.1232,4513.0,4512.1,0.0221]
[1758281980332,0.295,4512.4,4512.3,0.7372]
[1758281980536,0.21388162,4512.4,4512.3,0.7372]
[1758281980839,0.51983219,4512.6,4512.5,0.39868]
[1758281981044,0.23972872,4512.6,4512.5,0.94488]
[1758281981336,0.75956091,4512.6,4512.5,0.94488]
[1758281981536,0.75956091,4512.6,4512.5,1.25768]
[1758281985845,0.23972872,4512.6,4512.5,1.25768]
[1758281986145,0.75956367,4512.6,4512.5,1.25768]
[1758281986340,0.23972872,4512.6,4512.5,1.25768]
[1758281987139,0.75956165,4512.6,4512.5,1.25768]
[1758281988048,0.23972872,4512.6,4512.5,1.25768]
[1758281988946,0.45002872,4512.6,4512.5,1.25768]
[1758281989248,0.74502872,4512.6,4512.5,1.25768]
[1758281990040,0.45002872,4512.6,4512.5,1.25768]
[1758281990246,0.23972872,4512.6,4512.5,1.25768]
[1758281991949,0.5053,4513.3,4513.2,0.7372]
[1758281992150,0.7067,4513.3,4513.2,0.7372]
[1758281992349,1.22692799,4513.3,4513.2,0.4244]
[1758281993050,0.5349,4513.0,4512.9,0.71145]
[1758281993248,0.8299,4513.0,4512.9,0.92335]
[1758281993448,0.8299,4513.0,4512.9,1.13585]
[1758281994451,0.7067,4513.0,4512.9,1.13585]
[1758281994847,0.295,4513.3,4513.2,0.39862]
[1758281995046,0.5053,4513.3,4513.2,1.13582]
[1758281995248,1.02596174,4513.3,4513.2,1.13582]
[1758281995750,1.22736174,4513.3,4513.2,1.13582]
[1758281998149,0.52066174,4513.3,4513.2,1.13582]
[1758281998351,1.03868062,4513.7,4513.6,1.12168]
[1758281999356,0.52178062,4513.7,4513.6,1.12168]
[1758281999952,1.03008062,4513.7,4513.6,1.12168]
[1758282000655,0.52178062,4513.7,4513.6,1.12168]
[1758282001249,1.23878062,4513.7,4513.6,1.12168]
[1758282001458,1.23878062,4513.7,4513.6,0.5215]
[1758282001749,0.93118062,4513.7,4513.4,0.3986]
[1758282001957,0.8443,4513.5,4513.4,0.6025]
[1758282002647,0.8443,4513.5,4513.4,1.1217]
[1758282002854,0.717,4513.5,4513.4,1.1217]
[1758282003457,0.717,4513.5,4513.4,0.7231]
[1758282003652,0.8443,4513.5,4513.4,0.7231]
[1758282003852,1.08162799,4513.5,4513.4,1.1217]
[1758282004258,1.08162799,4513.5,4513.1,0.3176]
[1758282004458,0.4094,4513.3,4513.2,0.60252]
[1758282004666,0.95432799,4513.3,4513.2,0.60252]
[1758282004957,0.95432799,4513.3,4513.2,0.92012]
[1758282005655,0.95432799,4513.3,4513.2,1.12172]
[1758282006454,0.95432799,4513.3,4513.2,0.7231]
[1758282006656,0.95432799,4513.3,4513.2,0.4055]
[1758282006860,1.47596508,4513.3,4513.2,0.80412]
[1758282007157,1.47596508,4513.3,4513.2,0.2039]
[1758282007559,1.47596508,4513.3,4513.2,0.60252]
[1758282008252,1.47596508,4513.3,4513.2,0.2039]
[1758282008660,1.47596508,4513.3,4513.1,0.39863]
[1758282008860,1.47596508,4513.2,4513.1,0.60253]
[1758282009057,1.47596508,4513.2,4513.1,0.92013]
[1758282009860,0.23732799,4513.2,4513.1,1.12173]
[1758282011661,0.23732799,4513.2,4513.1,1.34773]
[1758282013454,0.3076,4513.5,4513.4,1.1217]
[1758282013655,0.54407683,4513.5,4513.4,1.1217]
[1758282013960,0.54407696,4513.5,4513.4,1.1217]
[1758282014553,0.717,4514.4,4514.3,0.39852]
[1758282014860,0.717,4514.4,4514.3,1.12162]
[1758282014861,1.23950933,4514.4,4514.3,1.12162]
[1758282015854,0.52250933,4514.4,4514.3,1.12162]
[1758282016058,0.8402,4515.0,4514.9,1.12157]
[1758282016255,1.2391976,4515.0,4514.9,1.12157]
[1758282016461,1.3664976,4515.0,4514.9,0.4055]
[1758282016656,1.3664976,4515.0,4514.8,0.39848]
[1758282016863,1.2391976,4514.9,4514.8,0.39848]
[1758282017061,0.717,4514.8,4514.7,0.60239]
[1758282017257,0.717,4514.8,4514.7,0.2039]
[1758282019261,0.1273,4514.5,4514.1,0.3176]
[1758282019460,0.717,4514.2,4514.1,0.2039]
[1758282021161,0.717,4514.2,4514.1,0.7231]
[1758282024165,0.717,4514.2,4514.1,1.12164]
[1758282026366,0.717,4514.2,4514.1,0.7231]
[1758282026567,0.95003709,4514.2,4514.1,0.7231]
[1758282027366,0.717,4513.9,4513.8,0.60247]
[1758282027575,0.95003709,4513.9,4513.8,1.12167]
[1758282027873,1.47191044,4513.9,4513.8,1.12167]
[1758282029073,1.23887335,4513.9,4513.8,1.12167]
[1758282029272,1.47199275,4513.9,4513.8,1.12167]
[1758282029670,1.47199275,4513.9,4513.8,0.7231]
[1758282029870,1.47199275,4513.9,4513.8,0.80407]
[1758282030071,1.47199275,4513.9,4513.8,1.11577]
[1758282030871,1.47199275,4513.9,4513.8,0.2039]
[1758282031071,1.47199275,4513.9,4513.6,0.39858]
[1758282031369,0.7185,4513.7,4513.6,0.60098]
[1758282031574,1.47349275,4513.7,4513.6,0.60098]
[1758282032175,1.47349275,4513.7,4513.6,0.91268]
[1758282033672,1.47350146,4513.7,4513.6,1.12428]
[1758282034075,0.7185,4513.5,4513.4,1.1243]
[1758282034277,1.47350146,4513.5,4513.4,1.1243]
[1758282034474,1.24037335,4513.5,4513.4,1.1243]
[1758282035573,1.36427335,4513.5,4513.4,1.1243]
[1758282037878,0.8424,4513.5,4513.4,1.1243]
[1758282038076,0.1273,4514.0,4513.4,0.7257]
[1758282038378,1.25947621,4513.9,4513.8,1.12426]
[1758282038773,1.46997621,4513.9,4513.8,0.7257]
[1758282038973,1.46997621,4513.9,4513.8,0.2024]
[1758282039179,1.46997621,4513.9,4513.8,0.91267]
[1758282039380,1.46997621,4513.9,4513.8,1.12427]
[1758282040482,1.46997621,4513.9,4513.8,0.7257]
[1758282041082,1.46997621,4513.9,4513.8,1.12427]
[1758282042884,1.46997621,4513.9,4513.8,0.7257]
[1758282043078,1.46997621,4513.9,4513.8,0.414]
[1758282043278,1.46997621,4513.9,4513.8,0.81257]
[1758282043684,1.46997621,4513.9,4513.8,1.12427]
[1758282044293,1.25947621,4513.9,4513.8,1.12427]
[1758282046792,0.96027621,4513.9,4513.8,1.12427]
[1758282047194,0.75147621,4513.9,4513.8,1.12427]
[1758282049199,0.75182032,4513.9,4513.8,1.12427]
[1758282050792,1.47032032,4513.9,4513.8,1.12427]
[1758282050997,1.47032032,4513.9,4513.8,0.7257]
[1758282051200,1.47032032,4513.9,4513.8,1.12427]
[1758282058998,0.96062032,4513.9,4513.8,1.12427]
[1758282059396,1.26742032,4513.9,4513.8,1.12427]
[1758282061204,0.96062032,4513.9,4513.8,1.12427]
[1758282061500,0.75182032,4513.9,4513.8,1.12427]
[1758282061700,0.22961478,4513.9,4513.8,1.12427]
[1758282063307,0.73211478,4513.9,4513.8,1.12427]
[1758282063804,0.42531478,4513.9,4513.8,1.12427]
[1758282064199,0.22961478,4513.9,4513.8,1.12427]
[1758282064803,0.73211478,4513.9,4513.8,1.12427]
[1758282065999,0.93131478,4513.9,4513.8,1.12427]
[1758282066203,0.93131478,4513.9,4513.8,0.82597]
[1758282066204,1.45391865,4513.9,4513.8,0.82597]
[1758282067302,1.45391865,4513.9,4513.8,1.12757]
[1758282067905,1.45391865,4513.9,4513.8,1.33297]
[1758282068106,1.45391865,4513.9,4513.8,1.10797]
[1758282068308,1.45391865,4513.9,4513.8,1.33297]
[1758282069007,0.93131478,4513.9,4513.8,1.33297]
[1758282069402,1.45398398,4513.9,4513.8,1.33297]
[1758282072709,1.45398398,4513.9,4513.8,1.10797]
[1758282072903,1.45398398,4513.9,4513.8,1.33297]
[1758282073307,1.45398398,4513.9,4513.8,0.82597]
[1758282073805,1.45398398,4513.9,4513.8,0.39857]
[1758282074010,0.7017,4513.7,4513.6,0.42068]
[1758282074211,1.45398398,4513.7,4513.6,0.42068]
[1758282074404,1.45398398,4513.7,4513.6,0.39858]
[1758282075313,0.8197,4513.5,4513.4,0.6032]
[1758282075509,1.57198398,4513.5,4513.4,0.6032]
[1758282075910,1.57198398,4513.5,4513.4,0.3986]
[1758282076411,1.57198398,4513.5,4513.4,0.9048]
[1758282077111,1.57198398,4513.5,4513.4,0.2046]
[1758282077312,1.57198398,4513.5,4513.4,0.3986]
[1758282078910,1.57301899,4513.5,4513.4,0.3986]
[1758282079911,1.45501899,4513.5,4513.4,1.1102]
[1758282081716,1.2243692,4513.5,4513.4,1.1102]
[1758282081916,1.45497226,4513.5,4513.4,1.1102]
[1758282082513,1.2243692,4513.5,4513.4,1.1102]
[1758282083217,1.45497131,4513.5,4513.4,1.1102]
[1758282083422,1.45497131,4513.5,4513.4,0.9056]
[1758282083713,0.7017,4513.4,4513.3,0.90481]
[1758282083913,1.2243692,4513.4,4513.3,0.39861]
[1758282084512,1.4549644,4513.4,4513.3,0.39861]
[1758282084711,1.2243692,4513.4,4513.3,0.39861]
[1758282084912,1.45496369,4513.4,4513.3,0.39861]
[1758282085921,1.45491509,4513.4,4513.3,0.39861]
[1758282088020,0.93224589,4513.4,4513.3,0.39861]
[1758282091721,0.93224589,4513.4,4513.2,0.39862]
[1758282091925,0.93594589,4513.3,4513.2,0.39862]
[1758282092422,1.46494385,4513.3,4513.1,0.0221]
[1758282092630,0.93594589,4513.2,4513.1,0.0221]
[1758282092920,0.93594589,4513.2,4512.7,0.5276]
[1758282093116,0.8315,4513.0,4512.9,0.59744]
[1758282093318,0.8315,4513.0,4512.9,0.90104]
[1758282093719,0.8315,4513.0,4512.9,1.11104]
[1758282095920,0.7054,4513.0,4512.9,1.11104]
[1758282096126,0.5029,4513.0,4512.9,1.11104]
[1758282104032,0.2116,4513.5,4513.4,0.4088]
[1758282104231,0.1273,4514.5,4513.8,0.39857]
[1758282104232,0.23076432,4513.9,4513.8,0.39857]
[1758282104429,0.4141,4514.2,4514.1,0.59734]
[1758282104736,0.76447413,4514.2,4514.1,1.11094]
[1758282106930,1.46987413,4514.2,4514.1,1.11094]
[1758282109635,1.46987413,4514.2,4513.9,0.224]
[1758282109636,0.5402,4514.0,4513.9,0.39856]
[1758282109836,1.59597413,4514.0,4513.9,0.39856]
[1758282110237,1.59597413,4514.0,4513.9,0.59736]
[1758282110539,1.59597413,4514.0,4513.9,0.90096]
[1758282111137,1.062299,4514.0,4513.9,0.90096]
[1758282112737,1.062299,4514.0,4513.9,0.59736]
[1758282113034,1.59530801,4514.0,4513.9,0.39856]
[1758282113243,0.4141,4513.4,4513.3,0.4228]
[1758282113434,0.7054,4513.4,4513.3,1.33501]
[1758282115348,0.7054,4513.4,4513.3,1.11101]
[1758282115544,0.7054,4513.4,4513.3,1.33501]
[1758282115838,0.7054,4513.4,4513.3,1.11101]
[1758282116549,0.7054,4513.4,4513.3,1.33501]
[1758282117842,0.7054,4513.4,4513.3,1.11101]
[1758282118046,0.7054,4513.4,4513.3,1.33501]
[1758282119039,0.93587282,4513.4,4513.3,1.33501]
[1758282119245,0.7054,4513.4,4513.3,1.33501]
[1758282120443,0.7054,4513.4,4513.3,1.11101]
[1758282120741,0.7054,4513.4,4513.3,1.33501]
[1758282122547,0.5029,4513.4,4513.3,1.33501]
[1758282123147,0.5364,4514.0,4513.9,1.09356]
[1758282123443,1.17375362,4514.0,4513.9,1.09356]
[1758282123639,0.53296393,4514.0,4513.9,1.31756]
[1758282126648,0.7202,4514.9,4514.8,0.1973]
[1758282126848,1.48461645,4514.9,4514.8,1.09348]
[1758282128445,1.48461645,4514.9,4514.8,0.80038]
[1758282128644,1.48461645,4514.9,4514.8,0.59578]
[1758282129050,1.48461645,4514.9,4514.8,0.39848]
[1758282130248,0.2109,4514.7,4514.6,0.3985]
[1758282130550,1.48438264,4514.7,4514.6,0.3985]
[1758282130853,1.48438264,4514.7,4514.6,0.8889]
[1758282131353,1.48441902,4514.7,4514.6,1.0935]
[1758282131756,0.5311,4514.5,4514.4,0.39851]
[1758282131957,1.07229733,4514.5,4514.4,0.39851]
[1758282132254,1.60521902,4514.5,4514.3,0.39852]
[1758282132457,1.48441902,4514.4,4514.3,0.39852]
[1758282132650,0.95149733,4514.4,4514.3,0.39852]
[1758282133051,1.48448152,4514.4,4514.3,0.39852]
[1758282133556,1.48448152,4514.4,4514.3,0.59582]
[1758282133756,1.48448152,4514.4,4514.3,0.88892]
[1758282136658,1.48448152,4514.4,4514.3,0.59582]
[1758282136857,0.95149733,4514.4,4514.3,0.59582]
[1758282137059,1.48420752,4514.4,4514.3,0.59582]
[1758282137254,1.48420752,4514.4,4514.3,0.88892]
[1758282140156,1.48420752,4514.4,4514.3,0.39852]
[1758282145562,1.48420752,4514.4,4514.3,1.09352]
[1758282153468,1.28480752,4514.4,4514.3,1.09352]
[1758282153663,1.49190752,4514.4,4514.3,1.09352]
[1758282153862,1.49190752,4514.4,4514.3,0.59582]
[1758282155264,1.49190752,4514.4,4514.1,0.0221]
[1758282155469,0.7234,4513.2,4513.1,0.39863]
[1758282155664,0.4144,4512.9,4512.8,0.92296]
[1758282155866,0.95469733,4512.9,4512.8,0.92296]
[1758282156066,0.95469733,4512.9,4512.8,1.12956]
[1758282159265,0.7234,4512.9,4512.8,1.12956]
[1758282170788,0.7234,4512.9,4512.8,0.60746]
[1758282173593,0.7234,4512.9,4512.8,0.2088]
[1758282173791,0.4144,4512.6,4512.5,0.39867]
[1758282173990,0.7234,4512.6,4512.5,0.39867]
[1758282174291,1.27472492,4512.6,4512.5,0.39867]
[1758282174790,1.27472492,4512.6,4512.5,0.60747]
[1758282175693,1.27472492,4512.6,4512.0,0.4154]
[1758282175694,0.5163,4512.1,4512.0,0.4154]
[1758282175897,0.5163,4512.5,4512.4,0.81409]
[1758282176196,0.7234,4512.5,4512.4,1.12959]
[1758282176988,0.846,4512.5,4512.4,1.12959]
[1758282177199,0.846,4512.5,4512.4,0.60289]
[1758282177391,1.39705663,4512.5,4512.4,0.60289]
[1758282178098,0.846,4512.5,4512.4,0.60289]
[1758282178297,0.846,4512.5,4512.4,0.39869]
[1758282178695,0.846,4512.5,4512.4,0.59399]
[1758282178895,0.846,4512.5,4512.4,0.89769]
[1758282179101,0.8217,4513.0,4512.9,0.80025]
[1758282179296,1.60408717,4513.0,4512.9,1.10395]
[1758282179599,1.48598717,4513.0,4512.9,1.10395]
[1758282186204,1.60278717,4513.0,4512.9,1.10395]
[1758282191913,1.60278717,4513.0,4512.9,0.80025]
[1758282192109,1.60278717,4513.0,4512.9,0.39865]
[1758282193013,1.60278717,4513.0,4512.7,0.39866]
[1758282193210,1.48598717,4512.9,4512.8,0.39866]
[1758282194218,1.48598717,4512.9,4512.8,0.59396]
[1758282194420,1.48598717,4512.9,4512.8,0.89766]
[1758282195914,1.48598717,4512.9,4512.8,1.10396]
[1758282197023,1.48598717,4512.9,4512.8,0.39866]
[1758282197522,1.48598717,4512.9,4512.8,0.89766]
[1758282198021,1.48598717,4512.9,4512.8,0.59396]
[1758282198223,1.48598717,4512.9,4512.2,1.01887]
[1758282198414,0.7036,4512.7,4512.6,0.39867]
[1758282198718,1.48598717,4512.7,4512.6,0.39867]
[1758282200720,1.48598717,4512.7,4512.6,0.59397]
[1758282201220,1.48598717,4512.7,4512.6,0.89767]
[1758282201720,1.48598717,4512.7,4512.6,1.10397]
[1758282204718,1.2547282,4512.7,4512.6,1.10397]
[1758282204925,1.4882594,4512.7,4512.6,1.10397]
[1758282205312,1.2547282,4512.7,4512.6,1.10397]
[1758282207224,1.48830803,4512.7,4512.6,1.10397]
[1758282207818,1.2547282,4512.7,4512.6,1.10397]
[1758282208013,1.488299,4512.7,4512.6,1.10397]
[1758282208220,0.784699,4512.7,4512.6,1.10397]
[1758282208722,0.5511282,4512.7,4512.6,1.10397]
[1758282208918,0.2118,4512.9,4512.8,0.80076]
[1758282209123,1.06396764,4512.9,4512.8,1.10766]
[1758282209421,1.49358206,4512.9,4512.8,1.10766]
[1758282210222,1.25996764,4512.9,4512.8,1.10766]
[1758282210521,1.49358194,4512.9,4512.8,1.10766]
[1758282210722,1.25996764,4512.9,4512.8,1.10766]
[1758282211024,1.49358194,4512.9,4512.8,1.10766]
[1758282211524,1.49352495,4512.9,4512.8,1.10766]